fUST/lending_fUST_20250929
["ID","MTS","AMOUNT","RATE_DAILY","PERIOD"]
[388411127,1759159842062,-567.73,0.00024147,2]
[388411128,1759159842071,-480.0,0.00024147,2]
[388411129,1759159842081,-480.0,0.00024147,2]
[388411130,1759159842090,-480.0,0.00024147,2]
[388411131,1759159842100,-480.0,0.00024147,2]
[388411132,1759159842109,-480.0,0.00024147,2]
[388411133,1759159842118,-480.0,0.00024147,2]
[388411134,1759159842128,-503.19,0.00024147,2]
[388411135,1759159842137,-431.64216615,0.00024147,2]
[388411136,1759159842147,-492.69480604,0.00024147,2]
[388411137,1759159842156,-708.28,0.00024147,2]
[388411138,1759159842166,-690.53,0.00024147,2]
[388411139,1759159842176,-550.9,0.00024147,2]
[388411140,1759159842185,-480.0,0.00024147,2]
[388411141,1759159842195,-480.0,0.00024147,2]
[388411142,1759159842205,-480.0,0.00024147,2]
[388411143,1759159842214,-480.0,0.00024147,2]
[388411144,1759159842225,-656.33,0.00024147,2]
[388411145,1759159842235,-480.0,0.00024147,2]
[388411146,1759159842244,-480.0,0.00024147,2]
[388411147,1759159842254,-740.48,0.00024147,2]
[388411148,1759159842264,-480.0,0.00024147,2]
[388411149,1759159842274,-489.99,0.00024147,2]
[388411150,1759159842283,-480.0,0.00024147,2]
[388411151,1759159842294,-453.73229676,0.0002416,2]
[388411152,1759159842303,-164.15527408,0.0002416,2]
[388411153,1759159842313,-735.78845985,0.0002416,2]
[388411154,1759159842323,-1324.41922772,0.0002416,2]
[388411155,1759159842332,-2354.52307151,0.0002416,2]
[388411156,1759159842342,-3678.94229923,0.0002416,2]
[388411157,1759159842356,-339.37785732,0.0002416,2]
[388411158,1759159842367,-230.69066209,0.0002416,2]
[388411159,1759159842377,-1814.92918703,0.0002416,2]
[388411160,1759159842387,-1357.51142928,0.00024171,2]
[388411161,1759159842397,-588.0,0.00024186,2]
[388411162,1759159842407,-151.0,0.000242,8]
[388411163,1759159842417,-151.0,0.000242,10]
[388411164,1759159842426,-2295.99037862,0.00024216,2]
[388411165,1759159842436,-600.0,0.00024246,20]
[388411166,1759159842446,-151.0,0.000243,9]
[388411167,1759159842455,-151.0,0.000243,5]
[388411168,1759159842466,-151.0,0.000243,10]
[388411169,1759159842475,-151.0,0.000243,7]
[388411170,1759159842485,-151.0,0.000243,9]
[388411171,1759159842495,-480.0,0.00024306,2]
[388411172,1759159842504,-480.0,0.00024306,2]
[388411173,1759159842513,-480.0,0.00024306,2]
[388411174,1759159842523,-618.9,0.00024306,2]
[388411175,1759159842532,-480.0,0.00024306,2]
[388411176,1759159842541,-480.0,0.00024306,2]
[388411177,1759159842550,-480.0,0.00024306,2]
[388411178,1759159842560,-480.0,0.00024306,2]
[388411179,1759159842569,-3518.71,0.00024306,2]
[388411180,1759159842579,-480.0,0.00024306,2]
[388411181,1759159842588,-986.1,0.00024306,2]
[388411182,1759159842597,-480.0,0.00024306,2]
[388411183,1759159842607,-1445.33,0.00024306,2]
[388411184,1759159842616,-480.0,0.00024306,2]
[388411185,1759159842625,-1098.08,0.00024306,2]
[388411186,1759159842636,-1269.32,0.00024306,2]
[388411187,1759159842645,-480.0,0.00024306,2]
[388411188,1759159842655,-1380.48,0.00024306,2]
[388411189,1759159842664,-480.0,0.00024306,2]
[388411190,1759159842674,-480.0,0.00024306,2]
[388411191,1759159842683,-637.94,0.00024306,2]
[388411192,1759159842694,-798.45,0.00024306,2]
[388411193,1759159842703,-851.63,0.00024306,2]
[388411194,1759159842712,-821.85,0.00024306,2]
[388411195,1759159842722,-618.67,0.00024306,2]
[388411196,1759159842732,-3131.96,0.00024306,2]
[388411197,1759159842741,-752.61,0.00024306,2]
[388411198,1759159842751,-1039.32,0.00024306,2]
[388411199,1759159842761,-487.66,0.00024306,2]
[388411200,1759159842770,-590.72,0.00024306,2]
[388411201,1759159842780,-1863.97,0.00024306,2]
[388411202,1759159842789,-1554.3,0.00024306,2]
[388411203,1759159842799,-2544.93,0.00024306,2]
[388411204,1759159842808,-840.85,0.00024306,2]
[388411205,1759159842817,-713.41,0.00024306,2]
[388411206,1759159842827,-480.0,0.00024306,2]
[388411207,1759159842836,-500.18447299,0.00024306,2]
[388411208,1759159842845,-632.85,0.00024306,2]
[388411209,1759159842855,-713.25,0.00024306,2]
[388411210,1759159842864,-12034.26,0.00024306,2]
[388411211,1759159842874,-2740.88,0.00024306,2]
[388411212,1759159842883,-658.46,0.00024306,2]
[388411213,1759159842889,-350.0,0.00024308,2]
[388411214,1759159842896,-621.65,0.00024318,2]
[388411215,1759159842904,-480.0,0.00024318,2]
[388411216,1759159842912,-480.0,0.00024318,2]
[388411217,1759159842919,-480.0,0.00024318,2]
[388411218,1759159842926,-722.09,0.00024318,2]
[388411219,1759159842933,-799.35,0.00024318,2]
[388411220,1759159842940,-573.66,0.00024318,2]
[388411221,1759159842948,-1590.13,0.00024318,2]
[388411222,1759159842955,-1130.74,0.00024318,2]
[388411223,1759159842963,-505.45,0.00024318,2]
[388411224,1759159842972,-480.0,0.00024318,2]
[388411225,1759159842978,-1492.51,0.00024318,2]
[388411226,1759159842986,-480.0,0.00024318,2]
[388411227,1759159842992,-480.0,0.00024318,2]
[388411228,1759159842999,-652.4,0.00024318,2]
[388411229,1759159843007,-480.0,0.00024318,2]
[388411230,1759159843014,-480.0,0.00024318,2]
[388411231,1759159843020,-904.84,0.00024318,2]
[388411232,1759159843027,-951.8,0.00024318,2]
[388411233,1759159843035,-480.0,0.00024318,2]
[388411234,1759159843041,-746.77,0.00024318,2]
[388411235,1759159843048,-480.0,0.00024318,2]
[388411236,1759159843055,-326.85836357,0.00024318,2]
[388411237,1759159843061,-851.18,0.00024318,2]
[388411238,1759159843068,-480.0,0.00024318,2]
[388411239,1759159843075,-667.27,0.00024318,2]
[388411240,1759159843083,-1408.62,0.00024318,2]
[388411241,1759159843092,-480.0,0.00024318,2]
[388411242,1759159843103,-2514.38,0.00024318,2]
[388411243,1759159843112,-480.0,0.00024318,2]
[388411244,1759159843121,-598.91,0.00024318,2]
[388411245,1759159843131,-873.82,0.00024318,2]
[388411246,1759159843140,-3012.47,0.00024318,2]
[388411247,1759159843149,-613.16,0.00024318,2]
[388411248,1759159843159,-732.79,0.00024318,2]
[388411250,1759159843168,-512.81,0.00024318,2]
[388411252,1759159843177,-906.36,0.00024318,2]
[388411254,1759159843186,-480.0,0.00024318,2]
[388411265,1759159843366,-522.76,0.00024319,2]
[388411266,1759159843377,-625.95,0.00024319,2]
[388411267,1759159843387,-480.0,0.00024319,2]
[388411268,1759159843398,-623.01,0.00024319,2]
[388411271,1759159843407,-480.0,0.00024319,2]
[388411273,1759159843416,-480.0,0.00024319,2]
[388411274,1759159843427,-318.4166279,0.00024319,2]
[388411275,1759159843437,-480.0,0.00024319,2]
[388411276,1759159843447,-637.16,0.00024319,2]
[388411277,1759159843456,-480.0,0.00024319,2]
[388411278,1759159843466,-1505.62,0.00024319,2]
[388411279,1759159843476,-480.0,0.00024319,2]
[388411280,1759159843487,-662.67,0.00024319,2]
[388411281,1759159843497,-480.0,0.00024319,2]
[388411282,1759159843506,-589.46,0.00024319,2]
[388411283,1759159843516,-1228.79,0.00024319,2]
[388411284,1759159843525,-1213.7,0.00024319,2]
[388411285,1759159843535,-609.37,0.00024319,2]
[388411286,1759159843544,-480.0,0.00024319,2]
[388411287,1759159843554,-530.88,0.00024319,2]
[388411288,1759159843564,-716.95,0.00024319,2]
[388411289,1759159843574,-670.69,0.00024319,2]
[388411290,1759159843584,-718.02,0.00024319,2]
[388411291,1759159843593,-890.25,0.00024319,2]
[388411292,1759159843603,-480.0,0.00024319,2]
[388411293,1759159843613,-735.68,0.00024319,2]
[388411294,1759159843623,-854.95,0.00024319,2]
[388411295,1759159843633,-1162.84,0.00024319,2]
[388411296,1759159843642,-1078.61,0.00024319,2]
[388411297,1759159843652,-480.0,0.00024319,2]
[388411298,1759159843662,-480.0,0.00024319,2]
[388411299,1759159843672,-480.0,0.00024319,2]
[388411301,1759159843682,-480.0,0.00024319,2]
[388411302,1759159843692,-1951.61,0.00024319,2]
[388411304,1759159843701,-835.61,0.00024319,2]
[388411306,1759159843711,-480.0,0.00024319,2]
[388411307,1759159843721,-1269.12,0.00024319,2]
[388411308,1759159843731,-480.0,0.00024319,2]
[388411309,1759159843741,-1208.36,0.00024319,2]
[388411310,1759159843751,-480.0,0.00024319,2]
[388411311,1759159843760,-6110.18,0.00024319,2]
[388411312,1759159843770,-480.0,0.00024319,2]
[388411313,1759159843780,-2815.55,0.00024319,2]
[388411314,1759159843790,-568.75,0.00024319,2]
[388411315,1759159843799,-683.23,0.00024319,2]
[388411316,1759159843809,-480.0,0.00024319,2]
[388411317,1759159843819,-1393.28,0.00024319,2]
[388411318,1759159843829,-547.89,0.00024319,2]
[388411319,1759159843839,-6369.16,0.00024319,2]
[388411320,1759159843849,-797.57,0.00024319,2]
[388411321,1759159843858,-1204.27,0.00024319,2]
[388411322,1759159843868,-915.2,0.00024319,2]
[388411323,1759159843877,-3371.07,0.00024319,2]
[388411324,1759159843887,-328.78798777,0.00024319,2]
[388411325,1759159843897,-856.9,0.00024319,2]
[388411326,1759159843907,-964.42,0.00024319,2]
[388411327,1759159843917,-480.0,0.00024319,2]
[388411328,1759159843927,-480.0,0.0002432,2]
[388411329,1759159843936,-480.0,0.0002432,2]
[388411330,1759159843947,-498.83,0.0002432,2]
[388411331,1759159843957,-480.0,0.0002432,2]
[388411332,1759159843967,-1087.65,0.0002432,2]
[388411333,1759159843976,-659.84,0.0002432,2]
[388411334,1759159843986,-485.21,0.0002432,2]
[388411335,1759159843996,-480.0,0.0002432,2]
[388411336,1759159844006,-488.57,0.0002432,2]
[388411337,1759159844016,-480.0,0.0002432,2]
[388411338,1759159844026,-480.0,0.0002432,2]
[388411339,1759159844036,-490.92,0.0002432,2]
[388411340,1759159844045,-480.0,0.0002432,2]
[388411342,1759159844055,-480.0,0.0002432,2]
[388411344,1759159844064,-662.69,0.0002432,2]
[388411345,1759159844074,-480.0,0.0002432,2]
[388411346,1759159844083,-480.0,0.0002432,2]
[388411347,1759159844093,-691.11,0.0002432,2]
[388411348,1759159844103,-480.0,0.0002432,2]
[388411349,1759159844112,-658.93,0.0002432,2]
[388411350,1759159844122,-480.0,0.0002432,2]
[388411351,1759159844131,-480.0,0.0002432,2]
[388411352,1759159844140,-480.0,0.0002432,2]
[388411353,1759159844150,-525.83,0.0002432,2]
[388411354,1759159844159,-480.0,0.0002432,2]
[388411355,1759159844169,-480.0,0.0002432,2]
[388411356,1759159844178,-480.0,0.0002432,2]
[388411357,1759159844187,-651.93,0.0002432,2]
[388411358,1759159844196,-480.0,0.0002432,2]
[388411359,1759159844206,-480.0,0.0002432,2]
[388411360,1759159844217,-480.0,0.0002432,2]
[388411361,1759159844227,-565.9,0.0002432,2]
[388411362,1759159844236,-480.0,0.0002432,2]
[388411363,1759159844245,-516.46,0.0002432,2]
[388411364,1759159844255,-480.0,0.0002432,2]
[388411365,1759159844264,-480.0,0.0002432,2]
[388411366,1759159844273,-480.0,0.0002432,2]
[388411367,1759159844282,-480.0,0.0002432,2]
[388411368,1759159844291,-480.0,0.0002432,2]
[388411369,1759159844301,-480.0,0.0002432,2]
[388411370,1759159844310,-480.0,0.0002432,2]
[388411371,1759159844320,-480.0,0.0002432,2]
[388411372,1759159844329,-480.0,0.0002432,2]
[388411373,1759159844339,-856.22,0.0002432,2]
[388411374,1759159844350,-496.23,0.0002432,2]
[388411375,1759159844362,-480.0,0.0002432,2]
[388411376,1759159844371,-480.0,0.0002432,2]
[388411377,1759159844380,-480.0,0.0002432,2]
[388411378,1759159844390,-480.0,0.0002432,2]
[388411379,1759159844400,-480.0,0.0002432,2]
[388411380,1759159844409,-480.0,0.0002432,2]
[388411381,1759159844419,-480.0,0.0002432,2]
[388411382,1759159844428,-480.0,0.0002432,2]
[388411383,1759159844438,-480.0,0.0002432,2]
[388411384,1759159844448,-480.0,0.0002432,2]
[388411385,1759159844457,-480.0,0.0002432,2]
[388411386,1759159844467,-480.0,0.0002432,2]
[388411387,1759159844477,-639.03,0.0002432,2]
[388411388,1759159844486,-480.0,0.0002432,2]
[388411389,1759159844496,-480.0,0.0002432,2]
[388411390,1759159844506,-480.0,0.0002432,2]
[388411391,1759159844515,-624.3,0.0002432,2]
[388411392,1759159844523,-480.0,0.0002432,2]
[388411393,1759159844533,-644.65,0.0002432,2]
[388411394,1759159844543,-480.0,0.0002432,2]
[388411395,1759159844552,-480.0,0.0002432,2]
[388411396,1759159844562,-480.0,0.0002432,2]
[388411397,1759159844572,-797.26,0.0002432,2]
[388411398,1759159844581,-261.36033026,0.0002432,2]
[388411399,1759159844591,-983.15,0.0002432,2]
[388411400,1759159844600,-480.0,0.0002432,2]
[388411401,1759159844610,-480.0,0.0002432,2]
[388411402,1759159844619,-480.0,0.0002432,2]
[388411403,1759159844628,-496.76476797,0.0002432,2]
[388411404,1759159844639,-480.0,0.0002432,2]
[388411405,1759159844648,-925.81,0.0002432,2]
[388411406,1759159844658,-728.55,0.0002432,2]
[388411407,1759159844667,-480.0,0.0002432,2]
[388411408,1759159844676,-480.0,0.0002432,2]
[388411409,1759159844685,-480.0,0.0002432,2]
[388411410,1759159844694,-480.0,0.0002432,2]
[388411411,1759159844704,-1202.69,0.0002432,2]
[388411412,1759159844714,-480.0,0.0002432,2]
[388411413,1759159844723,-480.0,0.0002432,2]
[388411414,1759159844733,-703.92,0.0002432,2]
[388411415,1759159844742,-480.0,0.0002432,2]
[388411416,1759159844753,-485.50318601,0.0002432,2]
[388411417,1759159844763,-860.95,0.0002432,2]
[388411418,1759159844773,-480.0,0.0002432,2]
[388411419,1759159844784,-480.0,0.0002432,2]
[388411420,1759159844794,-480.0,0.0002432,2]
[388411421,1759159844804,-497.93,0.0002432,2]
[388411422,1759159844814,-480.0,0.0002432,2]
[388411423,1759159844823,-480.0,0.0002432,2]
[388411424,1759159844833,-480.0,0.0002432,2]
[388411425,1759159844843,-480.0,0.0002432,2]
[388411426,1759159844852,-497.08573525,0.0002432,2]
[388411427,1759159844861,-480.0,0.0002432,2]
[388411428,1759159844871,-200.0,0.0002432,2]
[388411429,1759159844880,-480.0,0.0002432,2]
[388411430,1759159844890,-480.0,0.0002432,2]
[388411431,1759159844899,-480.0,0.0002432,2]
[388411432,1759159844911,-480.0,0.0002432,2]
[388411433,1759159844921,-480.0,0.0002432,2]
[388411434,1759159844931,-564.36,0.0002432,2]
[388411435,1759159844940,-649.35,0.0002432,2]
[388411436,1759159844950,-536.57,0.0002432,2]
[388411437,1759159844959,-480.0,0.0002432,2]
[388411438,1759159844970,-6430.34,0.0002432,2]
[388411439,1759159844979,-480.0,0.0002432,2]
[388411440,1759159844989,-480.0,0.0002432,2]
[388411441,1759159844998,-601.27,0.0002432,2]
[388411442,1759159845009,-862.61,0.0002432,2]
[388411443,1759159845019,-651.54,0.0002432,2]
[388411444,1759159845028,-527.82,0.0002432,2]
[388411445,1759159845038,-480.0,0.0002432,2]
[388411446,1759159845047,-480.0,0.0002432,2]
[388411447,1759159845057,-480.0,0.0002432,2]
[388411448,1759159845067,-480.0,0.0002432,2]
[388411449,1759159845076,-480.0,0.0002432,2]
[388411450,1759159845086,-500.0,0.0002432,2]
[388411451,1759159845095,-647.24,0.0002432,2]
[388411452,1759159845105,-1604.21,0.0002432,2]
[388411453,1759159845114,-633.37,0.0002432,2]
[388411454,1759159845123,-480.0,0.0002432,2]
[388411455,1759159845133,-480.0,0.0002432,2]
[388411456,1759159845143,-480.0,0.0002432,2]
[388411457,1759159845152,-480.0,0.0002432,2]
[388411458,1759159845161,-480.0,0.0002432,2]
[388411459,1759159845170,-480.0,0.0002432,2]
[388411460,1759159845179,-480.0,0.0002432,2]
[388411461,1759159845188,-480.0,0.0002432,2]
[388411462,1759159845198,-480.0,0.0002432,2]
[388411463,1759159845207,-480.0,0.0002432,2]
[388411464,1759159845216,-480.0,0.0002432,2]
[388411465,1759159845225,-480.0,0.0002432,2]
[388411466,1759159845235,-480.0,0.0002432,2]
[388411467,1759159845244,-339.50029271,0.0002432,2]
[388411468,1759159845254,-498.3,0.0002432,2]
[388411469,1759159845263,-635.45,0.0002432,2]
[388411470,1759159845272,-567.36,0.0002432,2]
[388411471,1759159845282,-567.36,0.0002432,2]
[388411472,1759159845291,-582.62,0.0002432,2]
[388411473,1759159845301,-480.0,0.0002432,2]
[388411474,1759159845310,-505.97,0.0002432,2]
[388411475,1759159845319,-704.16,0.0002432,2]
[388411476,1759159845328,-480.0,0.0002432,2]
[388411477,1759159845338,-480.0,0.0002432,2]
[388411478,1759159845348,-465.47468292,0.0002432,2]
[388411479,1759159845360,-664.36,0.0002432,2]
[388411480,1759159845369,-480.0,0.0002432,2]
[388411481,1759159845379,-826.97,0.0002432,2]
[388411482,1759159845388,-1613.5,0.0002432,2]
[388411483,1759159845398,-480.0,0.0002432,2]
[388411484,1759159845407,-480.0,0.0002432,2]
[388411485,1759159845417,-906.0,0.0002432,2]
[388411486,1759159845427,-480.0,0.0002432,2]
[388411487,1759159845438,-584.52362739,0.0002432,2]
[388411488,1759159845691,-672.57637261,0.0002432,2]
[388411489,1759159845701,-480.0,0.0002432,2]
[388411490,1759159845711,-5113.84,0.0002432,2]
[388411491,1759159845721,-480.0,0.0002432,2]
[388411492,1759159845730,-480.0,0.0002432,2]
[388411493,1759159845740,-555.71,0.0002432,2]
[388411494,1759159845750,-480.0,0.0002432,2]
[388411495,1759159845759,-480.0,0.0002432,2]
[388411496,1759159845769,-2489.63432445,0.0002432,2]
[388411497,1759159845785,-142.41567555,0.0002432,2]
[388411498,1759159845795,-480.0,0.0002432,2]
[388411499,1759159845805,-581.56,0.0002432,2]
[388411500,1759159845814,-928.43736916,0.0002432,2]
[388411501,1759159845825,-446.23263084,0.0002432,2]
[388411502,1759159845835,-480.0,0.0002432,2]
[388411503,1759159845844,-480.0,0.0002432,2]
[388411504,1759159845853,-498.97,0.0002432,2]
[388411505,1759159845863,-716.41,0.0002432,2]
[388411506,1759159845873,-480.0,0.0002432,2]
[388411507,1759159845882,-480.0,0.0002432,2]
[388411508,1759159845892,-1877.06,0.0002432,2]
[388411509,1759159845903,-480.0,0.0002432,2]
[388411510,1759159845912,-480.0,0.0002432,2]
[388411511,1759159845922,-480.0,0.0002432,2]
[388411512,1759159845932,-484.42,0.0002432,2]
[388411513,1759159845941,-480.0,0.0002432,2]
[388411514,1759159845951,-536.36,0.0002432,2]
[388411515,1759159845960,-144.07277409,0.00024321,2]
[388411516,1759159845973,-12.98575648,0.00024321,2]
[388411517,1759159845983,-303.4538124,0.00024321,2]
[388411518,1759159845992,-152.79004855,0.00024321,2]
[388411519,1759159846001,-455.96431254,0.00024321,2]
[388411520,1759159846010,-231.10711434,0.00024321,2]
[388411521,1759159846021,-1019.0,0.00024321,2]
[388411522,1759159846030,-1444.0,0.00024321,2]
[388411523,1759159846041,-500.0,0.00024321,2]
[388411524,1759159846051,-151.0,0.00024321,2]
[388411525,1759159846061,-500.0,0.00024321,2]
[388411526,1759159846071,-200.49128938,0.00024321,2]
[388411527,1759159846080,-151.0,0.00024321,2]
[388411528,1759159846091,-255.0,0.00024321,2]
[388411529,1759159846100,-605.98416301,0.00024321,2]
[388411530,1759159846110,-154.01796608,0.00024321,2]
[388411531,1759159846119,-500.0,0.00024321,2]
[388411532,1759159846128,-252.53966276,0.00024321,2]
[388411533,1759159846138,-500.0,0.00024321,2]
[388411534,1759159846147,-500.0,0.00024321,2]
[388411535,1759159846157,-500.0,0.00024321,2]
[388411536,1759159846168,-480.0,0.00024321,2]
[388411537,1759159846177,-480.0,0.00024321,2]
[388411538,1759159846187,-210.37918064,0.00024321,2]
[388411539,1759159846196,-480.0,0.00024321,2]
[388411540,1759159846205,-480.0,0.00024321,2]
[388411541,1759159846215,-480.0,0.00024321,2]
[388411542,1759159846225,-480.0,0.00024321,2]
[388411543,1759159846234,-480.0,0.00024321,2]
[388411544,1759159846243,-588.49,0.00024321,2]
[388411545,1759159846253,-480.0,0.00024321,2]
[388411546,1759159846263,-480.0,0.00024321,2]
[388411548,1759159846272,-2241.74,0.00024321,2]
[388411550,1759159846282,-728.19,0.00024321,2]
[388411552,1759159846291,-1570.84,0.00024321,2]
[388411554,1759159846301,-494.51,0.00024321,2]
[388411557,1759159846311,-1284.07,0.00024321,2]
[388411560,1759159846320,-480.0,0.00024321,2]
[388411561,1759159846329,-500.0,0.00024321,2]
[388411563,1759159846339,-480.0,0.00024321,2]
[388411564,1759159846349,-480.0,0.00024321,2]
[388411566,1759159846361,-480.0,0.00024321,2]
[388411568,1759159846371,-480.0,0.00024321,2]
[388411570,1759159846380,-2587.33,0.00024321,2]
[388411571,1759159846390,-480.0,0.00024321,2]
[388411572,1759159846400,-1133.32,0.00024321,2]
[388411573,1759159846409,-480.0,0.00024321,2]
[388411574,1759159846418,-823.04,0.00024321,2]
[388411575,1759159846428,-480.0,0.00024321,2]
[388411576,1759159846437,-888.85,0.00024321,2]
[388411577,1759159846447,-482.64,0.00024321,2]
[388411578,1759159846456,-804.75,0.00024321,2]
[388411579,1759159846465,-480.0,0.00024321,2]
[388411580,1759159846474,-829.13,0.00024321,2]
[388411581,1759159846484,-480.0,0.00024321,2]
[388411582,1759159846493,-2563.21,0.00024321,2]
[388411583,1759159846503,-729.34,0.00024321,2]
[388411584,1759159846512,-778.05,0.00024321,2]
[388411585,1759159846522,-746.59,0.00024321,2]
[388411587,1759159846709,-805.62,0.00024321,2]
[388411588,1759159846719,-831.56,0.00024321,2]
[388411589,1759159846729,-732.65,0.00024321,2]
[388411590,1759159846740,-480.0,0.00024321,2]
[388411591,1759159846750,-480.0,0.00024321,2]
[388411592,1759159846759,-176.99552341,0.00024321,2]
[388411593,1759159846769,-2465.15,0.00024321,2]
[388411594,1759159846779,-587.01250393,0.00024321,2]
[388411595,1759159846791,-211.91749607,0.00024321,2]
[388411596,1759159846801,-1340.23250393,0.00024321,2]
[388411597,1759159846813,-263.98749607,0.00024321,2]
[388411598,1759159846823,-722.31,0.00024321,2]
[388411599,1759159846833,-724.42,0.00024321,2]
[388411600,1759159846842,-480.0,0.00024321,2]
[388411601,1759159846852,-738.99,0.00024321,2]
[388411602,1759159846862,-751.33415555,0.00024321,2]
[388411603,1759159847264,-480.0,0.00023872,2]
[388411604,1759159847274,-480.0,0.00023872,2]
[388411605,1759159847284,-126.64761428,0.00023872,2]
[388411606,1759159847895,-1142.37587637,0.00023772,2]
[388411607,1759159847907,-191.96412363,0.00023772,2]
[388411608,1759159847916,-110.03587637,0.00023872,2]
[388411609,1759159847928,-243.31650935,0.00023872,2]
[388411610,1759159847938,-480.0,0.00023872,2]
[388411611,1759159847948,-480.0,0.00024146,2]
[388411612,1759159847957,-480.0,0.00024146,2]
[388411613,1759159847967,-3635.18348965,0.00024306,2]
[388411614,1759159848420,-500.0,0.00023769,2]
[388411615,1759159848429,-24.4924999,0.00023769,2]
[388411616,1759159848441,-475.5075001,0.00023769,2]
[388411617,1759159848450,-500.0,0.00023769,2]
[388411618,1759159848459,-208.48047263,0.00023769,2]
[388411619,1759159848471,-234.43649287,0.00023769,2]
[388411620,1759159848482,-500.0,0.00023769,2]
[388411621,1759159848491,-500.0,0.00023769,2]
[388411622,1759159848501,-500.0,0.00023769,2]
[388411623,1759159848511,-500.0,0.00023769,2]
[388411624,1759159848520,-500.0,0.00023769,2]
[388411625,1759159848530,-500.0,0.00023769,2]
[388411626,1759159848540,-500.0,0.00023769,2]
[388411627,1759159848550,-500.0,0.00023769,2]
[388411628,1759159848559,-504.82425161,0.0002377,2]
[388411629,1759159848569,-504.82425161,0.0002377,2]
[388411630,1759159848578,-504.82425161,0.0002377,2]
[388411631,1759159848588,-504.82425161,0.0002377,2]
[388411632,1759159848597,-594.87852794,0.00024046,2]
[388411633,1759159848609,-739.46147206,0.00024046,2]
[388411634,1759159848618,-68.70651035,0.00024306,2]
[388411635,1759159848628,-1334.34,0.0002432,2]
[388411636,1759159848637,-29.38584445,0.00024321,2]
[388411637,1759159848648,-483.74,0.00024321,2]
[388411638,1759159848660,-480.0,0.00024321,2]
[388411639,1759159848670,-960.81,0.00024321,2]
[388411640,1759159848680,-2395.09,0.00024321,2]
[388411641,1759159848690,-582.42,0.00024321,2]
[388411642,1759159848699,-480.0,0.00024321,2]
[388411643,1759159848710,-614.95,0.00024321,2]
[388411644,1759159848721,-2295.99037862,0.00024321,2]
[388411645,1759159848731,-199.20364212,0.00024334,2]
[388411646,1759159848741,-151.0,0.00024334,2]
[388411647,1759159848750,-151.57172892,0.00024334,2]
[388411648,1759159848760,-520.0,0.00024334,3]
[388411649,1759159848770,-1000.0,0.00024383,5]
[388411650,1759159848780,-151.0,0.000244,6]
[388411651,1759159848795,-151.0,0.000244,8]
[388411652,1759159848804,-151.0,0.000244,9]
[388411653,1759159848814,-3368.31444403,0.000244,2]
[388411654,1759159848842,-504.82425161,0.0002377,2]
[388411655,1759159848851,-10138.85245682,0.000244,2]
[388411656,1759159853508,2853.41094112,0.00023758,2]
[388411657,1759159853543,2146.58905888,0.00023758,2]
[388411658,1759159854270,-500.0,0.00023769,2]
[388411659,1759159854313,-504.82425161,0.0002377,2]
[388411660,1759159854357,-504.82425161,0.0002377,2]